fUST/lending_fUST_20241223
["ID","MTS","AMOUNT","RATE_DAILY","PERIOD"]
[346331930,1734897043938,-500.0,0.00013698,2]
[346331931,1734897043947,-1005.08,0.00013698,2]
[346331932,1734897043957,-500.0,0.00013698,2]
[346331933,1734897043966,-500.0,0.00013698,2]
[346331934,1734897043975,-500.0,0.00013698,2]
[346331935,1734897043984,-510.18,0.00013698,2]
[346331936,1734897043993,-647.35714754,0.00013698,2]
[346331937,1734897044002,-1040.67,0.00013698,2]
[346331938,1734897044011,-1056.68,0.00013698,2]
[346331939,1734897044020,-500.0,0.00013698,2]
[346331940,1734897044030,-500.0,0.00013698,2]
[346331941,1734897044039,-500.0,0.00013698,2]
[346331942,1734897044048,-1353.34,0.00013698,2]
[346331943,1734897044057,-582.06,0.00013698,2]
[346331944,1734897044066,-500.0,0.00013698,2]
[346331945,1734897044075,-500.0,0.00013698,2]
[346331946,1734897044085,-2139.06,0.00013698,2]
[346331947,1734897044094,-500.0,0.00013698,2]
[346331948,1734897044103,-500.0,0.00013698,2]
[346331949,1734897044112,-500.0,0.00013698,2]
[346331950,1734897044122,-500.0,0.00013698,2]
[346331951,1734897044136,-500.0,0.00013698,2]
[346331952,1734897044146,-500.0,0.00013698,2]
[346331953,1734897044155,-500.0,0.00013698,2]
[346331954,1734897044164,-643.72,0.00013698,2]
[346331955,1734897044174,-500.0,0.00013698,2]
[346331956,1734897044183,-1482.87,0.00013698,2]
[346331957,1734897044193,-500.0,0.00013698,2]
[346331958,1734897044203,-1337.27,0.00013698,2]
[346331959,1734897044212,-500.0,0.00013698,2]
[346331960,1734897044222,-1929.5,0.00013698,2]
[346331961,1734897044231,-1033.81,0.00013698,2]
[346331962,1734897044241,-1820.01,0.00013698,2]
[346331963,1734897044250,-652.24,0.00013698,2]
[346331964,1734897044260,-666.78,0.00013698,2]
[346331965,1734897044269,-560.43,0.00013698,2]
[346331966,1734897044279,-513.57,0.00013698,2]
[346331967,1734897044288,-500.0,0.00013698,2]
[346331968,1734897044298,-500.0,0.00013698,2]
[346331969,1734897044307,-630.68103371,0.00013698,2]
[346331970,1734897044317,-500.0,0.00013698,2]
[346331971,1734897044326,-500.0,0.00013698,2]
[346331972,1734897044335,-500.0,0.00013698,2]
[346331973,1734897044344,-500.0,0.00013698,2]
[346331974,1734897044353,-500.0,0.00013698,2]
[346331975,1734897044363,-279.70416929,0.00013698,2]
[346331976,1734897044372,-500.0,0.00013698,2]
[346331977,1734897044389,-500.0,0.00013698,2]
[346331978,1734897044399,-516.65128956,0.00013698,2]
[346331979,1734897044408,-1119.54,0.00013698,2]
[346331980,1734897044417,-849.73,0.00013698,2]
[346331981,1734897044426,-500.0,0.00013698,2]
[346331982,1734897044436,-500.0,0.00013698,2]
[346331983,1734897044445,-1014.61,0.00013698,2]
[346331984,1734897044454,-855.41,0.00013698,2]
[346331985,1734897044463,-500.0,0.00013698,2]
[346331986,1734897044472,-1293.98,0.00013698,2]
[346331987,1734897044482,-1715.33,0.00013698,2]
[346331988,1734897044491,-719.07,0.00013698,2]
[346331989,1734897044500,-1160.55,0.00013698,2]
[346331990,1734897044509,-1373.43,0.00013698,2]
[346331991,1734897044518,-500.0,0.00013698,2]
[346331992,1734897044527,-2693.72,0.00013698,2]
[346331993,1734897044536,-1523.21,0.00013698,2]
[346331994,1734897044546,-619.95,0.00013698,2]
[346331995,1734897044555,-500.0,0.00013698,2]
[346331996,1734897044564,-500.0,0.00013698,2]
[346331997,1734897044573,-500.0,0.00013698,2]
[346331998,1734897044582,-592.29,0.00013698,2]
[346331999,1734897044591,-500.0,0.00013698,2]
[346332000,1734897044600,-529.95,0.00013698,2]
[346332001,1734897044610,-868.5,0.00013698,2]
[346332002,1734897044619,-500.0,0.00013698,2]
[346332003,1734897044633,-500.0,0.00013698,2]
[346332004,1734897044642,-500.0,0.00013698,2]
[346332005,1734897044651,-500.0,0.00013698,2]
[346332006,1734897044660,-500.0,0.00013698,2]
[346332007,1734897044669,-500.0,0.00013698,2]
[346332008,1734897044679,-566.21,0.00013698,2]
[346332009,1734897044689,-500.0,0.00013698,2]
[346332010,1734897044698,-1947.43,0.00013698,2]
[346332011,1734897044709,-676.61,0.00013698,2]
[346332012,1734897044718,-500.0,0.00013698,2]
[346332013,1734897044728,-500.0,0.00013698,2]
[346332014,1734897044737,-500.0,0.00013698,2]
[346332015,1734897044747,-535.01,0.00013698,2]
[346332016,1734897044756,-3977.37,0.00013698,2]
[346332017,1734897044765,-500.0,0.00013698,2]
[346332018,1734897044774,-634.08,0.00013698,2]
[346332019,1734897044783,-500.0,0.00013698,2]
[346332020,1734897044792,-500.0,0.00013698,2]
[346332021,1734897044802,-962.67,0.00013698,2]
[346332022,1734897044811,-27404.14,0.00013698,2]
[346332023,1734897044821,-14038.32,0.00013698,2]
[346332024,1734897044830,-500.0,0.00013698,2]
[346332025,1734897044839,-500.0,0.00013698,2]
[346332026,1734897044848,-849.61,0.00013698,2]
[346332027,1734897044857,-500.0,0.00013698,2]
[346332028,1734897044867,-500.0,0.00013698,2]
[346332029,1734897044880,-1300.84,0.00013698,2]
[346332030,1734897044890,-64100.02,0.00013698,2]
[346332031,1734897044900,-500.0,0.00013698,2]
[346332032,1734897044911,-500.0,0.00013698,2]
[346332033,1734897044922,-797.82,0.00013698,2]
[346332034,1734897044931,-504.13,0.00013698,2]
[346332035,1734897044940,-438.64624109,0.00013698,2]
[346332036,1734897044949,-500.0,0.00013698,2]
[346332037,1734897044959,-20094.63,0.00013698,2]
[346332038,1734897044968,-10283.77,0.00013698,2]
[346332039,1734897044978,-500.0,0.00013698,2]
[346332040,1734897044988,-500.0,0.00013698,2]
[346332041,1734897044997,-500.0,0.00013698,2]
[346332042,1734897045007,-3344.18,0.00013698,2]
[346332043,1734897045016,-500.0,0.00013698,2]
[346332044,1734897045025,-500.0,0.00013698,2]
[346332045,1734897045034,-500.0,0.00013698,2]
[346332046,1734897045044,-4531.62,0.00013698,2]
[346332047,1734897045053,-500.0,0.00013698,2]
[346332048,1734897045063,-500.0,0.00013698,2]
[346332049,1734897045073,-1049.55,0.00013698,2]
[346332050,1734897045083,-3183.55,0.00013698,2]
[346332051,1734897045093,-778.24,0.00013698,2]
[346332052,1734897045102,-2940.0,0.00013698,2]
[346332053,1734897045111,-500.0,0.00013698,2]
[346332054,1734897045120,-500.0,0.00013698,2]
[346332055,1734897045132,-2884.86,0.00013698,2]
[346332056,1734897045142,-528.1,0.00013698,2]
[346332057,1734897045152,-592.88,0.00013698,2]
[346332058,1734897045162,-500.0,0.00013698,2]
[346332059,1734897045172,-584.75,0.00013698,2]
[346332060,1734897045183,-500.0,0.00013698,2]
[346332061,1734897045198,-1073.82,0.00013698,2]
[346332062,1734897045208,-500.0,0.00013698,2]
[346332063,1734897045219,-1405.53,0.00013698,2]
[346332064,1734897045230,-500.0,0.00013698,2]
[346332065,1734897045241,-1023.92,0.00013698,2]
[346332066,1734897045252,-500.0,0.00013698,2]
[346332067,1734897045267,-7302.38,0.00013698,2]
[346332068,1734897045290,-500.0,0.00013698,2]
[346332069,1734897045303,-674.06,0.00013698,2]
[346332070,1734897045314,-640.17,0.00013698,2]
[346332071,1734897045326,-828.12,0.00013698,2]
[346332072,1734897045337,-500.0,0.00013698,2]
[346332073,1734897045348,-6054.54,0.00013698,2]
[346332074,1734897045359,-1365.27,0.00013698,2]
[346332075,1734897045369,-1216.17,0.00013698,2]
[346332076,1734897045387,-520.62,0.00013698,2]
[346332077,1734897045397,-500.0,0.00013698,2]
[346332078,1734897045408,-1530.79,0.00013698,2]
[346332079,1734897045418,-500.0,0.00013698,2]
[346332080,1734897045429,-2007.62,0.00013698,2]
[346332081,1734897045441,-500.0,0.00013698,2]
[346332082,1734897045452,-750.44,0.00013698,2]
[346332083,1734897045463,-795.37,0.00013698,2]
[346332084,1734897045474,-2741.05,0.00013698,2]
[346332085,1734897045485,-5145.72,0.00013698,2]
[346332086,1734897045495,-500.0,0.00013698,2]
[346332087,1734897045509,-1629.7,0.00013698,2]
[346332088,1734897045520,-500.0,0.00013698,2]
[346332089,1734897045531,-500.0,0.00013698,2]
[346332090,1734897045541,-500.0,0.00013698,2]
[346332091,1734897045552,-1511.76,0.00013698,2]
[346332092,1734897045563,-4471.67,0.00013698,2]
[346332093,1734897045572,-500.0,0.00013698,2]
[346332094,1734897045583,-500.0,0.00013698,2]
[346332095,1734897045593,-521.15447523,0.00013698,2]
[346332096,1734897045604,-2887.71,0.00013698,2]
[346332097,1734897045614,-504.06530436,0.00013698,2]
[346332098,1734897045624,-500.0,0.00013698,2]
[346332099,1734897045638,-500.0,0.00013698,2]
[346332101,1734897045649,-2759.16,0.00013698,2]
[346332103,1734897045659,-414.753856,0.00013699,2]
[346332105,1734897045670,-1000.0,0.00013699,2]
[346332107,1734897045680,-500.0,0.00013699,2]
[346332109,1734897045691,-500.0,0.00013699,2]
[346332111,1734897045701,-500.0,0.00013699,2]
[346332113,1734897045714,-500.0,0.00013699,2]
[346332115,1734897045724,-500.0,0.00013699,2]
[346332117,1734897045734,-500.0,0.00013699,2]
[346332119,1734897045744,-500.0,0.00013699,2]
[346332120,1734897045754,-500.0,0.00013699,2]
[346332121,1734897045763,-500.0,0.00013699,2]
[346332123,1734897045773,-500.0,0.00013699,2]
[346332125,1734897045783,-500.0,0.00013699,2]
[346332127,1734897045793,-500.0,0.00013699,2]
[346332129,1734897045804,-500.0,0.00013699,2]
[346332131,1734897045816,-500.0,0.00013699,2]
[346332133,1734897045826,-500.0,0.00013699,2]
[346332135,1734897045836,-500.0,0.00013699,2]
[346332137,1734897045845,-500.0,0.00013699,2]
[346332139,1734897045855,-500.0,0.00013699,2]
[346332141,1734897045865,-500.0,0.00013699,2]
[346332143,1734897045875,-500.0,0.00013699,2]
[346332145,1734897045885,-500.0,0.00013699,2]
[346332147,1734897045895,-500.0,0.00013699,2]
[346332149,1734897045904,-500.0,0.00013699,2]
[346332151,1734897045914,-500.0,0.00013699,2]
[346332153,1734897045927,-500.0,0.00013699,2]
[346332155,1734897045936,-500.0,0.00013699,2]
[346332156,1734897045945,-500.0,0.00013699,2]
[346332157,1734897045955,-500.0,0.00013699,2]
[346332158,1734897045964,-500.0,0.00013699,2]
[346332160,1734897045973,-500.0,0.00013699,2]
[346332161,1734897045983,-500.0,0.00013699,2]
[346332162,1734897045992,-642.60098219,0.00013699,2]
[346332163,1734897046002,-500.0,0.00013699,2]
[346332164,1734897046011,-500.0,0.00013699,2]
[346332165,1734897046020,-500.0,0.00013699,2]
[346332166,1734897046030,-500.0,0.00013699,2]
[346332167,1734897046039,-500.0,0.00013699,2]
[346332169,1734897046049,-500.0,0.00013699,2]
[346332171,1734897046059,-500.0,0.00013699,2]
[346332172,1734897046068,-500.0,0.00013699,2]
[346332173,1734897046077,-500.0,0.00013699,2]
[346332174,1734897046087,-500.0,0.00013699,2]
[346332175,1734897046096,-500.0,0.00013699,2]
[346332176,1734897046106,-500.0,0.00013699,2]
[346332178,1734897046115,-500.0,0.00013699,2]
[346332179,1734897046128,-364.26009822,0.00013699,2]
[346332180,1734897046139,-500.0,0.00013699,2]
[346332181,1734897046151,-500.0,0.00013699,2]
[346332182,1734897046160,-1000.0,0.00013718,2]
[346332183,1734897046169,-1000.0,0.00013743,2]
[346332184,1734897046179,-1000.0,0.0001376,2]
[346332185,1734897046188,-703.09428631,0.00013814,2]
[346332186,1734897046197,-206.7114874,0.00013832,2]
[346332187,1734897046207,-480.19381214,0.00013836,2]
[346332188,1734897046216,-167.11,0.00013859,2]
[346332189,1734897046226,-666.0,0.00013872,2]
[346332190,1734897046235,-1811.4,0.000139,2]
[346332191,1734897046245,-157.558,0.000139,2]
[346332192,1734897046255,-352.1566237,0.000139,2]
[346332193,1734897046264,-352.1566237,0.000139,2]
[346332194,1734897046274,-352.1566237,0.000139,2]
[346332195,1734897046283,-704.1859437,0.000139,2]
[346332196,1734897046292,-352.1566237,0.000139,2]
[346332197,1734897046302,-316.8468335,0.000139,2]
[346332198,1734897046311,-352.02932,0.000139,2]
[346332199,1734897046320,-737.0,0.000139,4]
[346332200,1734897046329,-153.0,0.000139,2]
[346332201,1734897046339,-150.742,0.00013907,2]
[346332202,1734897046348,-533.0,0.00013907,2]
[346332203,1734897046358,-2141.0,0.00013907,2]
[346332204,1734897046367,-178.676,0.00013907,2]
[346332205,1734897046377,-10569.8573204,0.0001393,2]
[346332206,1734897046386,-1000.0,0.00013953,2]
[346332207,1734897046396,-315.28444541,0.00013971,2]
[346332208,1734897046406,-151.0,0.00013972,2]
[346332209,1734897046415,-500.0,0.00013972,2]
[346332210,1734897046424,-500.0,0.00013972,2]
[346332211,1734897046434,-618.05855716,0.00013972,2]
[346332212,1734897046444,-500.0,0.00013972,2]
[346332213,1734897046455,-500.0,0.00013972,2]
[346332214,1734897046464,-500.0,0.00013972,2]
[346332215,1734897046473,-500.0,0.00013972,2]
[346332216,1734897046482,-804.62,0.00013972,2]
[346332217,1734897046491,-500.0,0.00013972,2]
[346332218,1734897046500,-500.0,0.00013972,2]
[346332219,1734897046510,-500.0,0.00013972,2]
[346332220,1734897046519,-500.0,0.00013972,2]
[346332221,1734897046528,-507.25401207,0.00013972,2]
[346332222,1734897046537,-500.0,0.00013972,2]
[346332223,1734897046547,-500.0,0.00013972,2]
[346332224,1734897046555,-505.31323867,0.00013972,2]
[346332225,1734897046565,-509.20460724,0.00013972,2]
[346332226,1734897046574,-500.0,0.00013972,2]
[346332227,1734897046583,-500.0,0.00013972,2]
[346332228,1734897046593,-500.0,0.00013972,2]
[346332229,1734897046603,-500.0,0.00013972,2]
[346332230,1734897046612,-500.0,0.00013972,2]
[346332231,1734897046622,-500.0,0.00013972,2]
[346332232,1734897046634,-500.0,0.00013972,2]
[346332233,1734897046643,-500.0,0.00013972,2]
[346332234,1734897046652,-500.0,0.00013972,2]
[346332235,1734897046661,-500.0,0.00013972,2]
[346332236,1734897046670,-585.76,0.00013972,2]
[346332237,1734897046679,-737.23,0.00013972,2]
[346332238,1734897046689,-540.04,0.00013972,2]
[346332239,1734897046699,-668.03,0.00013972,2]
[346332240,1734897046708,-929.14,0.00013972,2]
[346332241,1734897046717,-500.0,0.00013972,2]
[346332242,1734897046726,-500.0,0.00013972,2]
[346332243,1734897046735,-565.21,0.00013972,2]
[346332244,1734897046744,-533.94,0.00013972,2]
[346332245,1734897046754,-500.0,0.00013972,2]
[346332246,1734897046763,-1812.54,0.00013972,2]
[346332247,1734897046774,-500.0,0.00013972,2]
[346332248,1734897046784,-500.0,0.00013972,2]
[346332249,1734897046794,-500.0,0.00013972,2]
[346332250,1734897046804,-500.0,0.00013972,2]
[346332251,1734897046814,-500.0,0.00013972,2]
[346332252,1734897046824,-529.1,0.00013972,2]
[346332253,1734897046835,-500.0,0.00013972,2]
[346332254,1734897046845,-619.86,0.00013972,2]
[346332255,1734897046855,-500.0,0.00013972,2]
[346332256,1734897046866,-500.0,0.00013972,2]
[346332257,1734897046878,-500.0,0.00013972,2]
[346332258,1734897046888,-1190.61,0.00013972,2]
[346332259,1734897046898,-1436.73,0.00013972,2]
[346332260,1734897046909,-506.98,0.00013972,2]
[346332261,1734897046918,-212.27,0.00013972,2]
[346332262,1734897046930,-500.0,0.00013972,2]
[346332263,1734897046939,-500.0,0.00013972,2]
[346332264,1734897046949,-1902.8,0.00013972,2]
[346332265,1734897046958,-3515.26,0.00013972,2]
[346332266,1734897046967,-1230.48,0.00013972,2]
[346332267,1734897046978,-500.0,0.00013972,2]
[346332268,1734897046987,-500.0,0.00013972,2]
[346332269,1734897046996,-1115.22,0.00013972,2]
[346332270,1734897047006,-500.0,0.00013972,2]
[346332271,1734897047016,-705.13,0.00013972,2]
[346332272,1734897047026,-672.5,0.00013972,2]
[346332273,1734897047036,-506.14,0.00013972,2]
[346332274,1734897047045,-1543.96,0.00013972,2]
[346332275,1734897047055,-500.0,0.00013972,2]
[346332276,1734897047064,-658.94,0.00013972,2]
[346332277,1734897047074,-525.14523659,0.00013972,2]
[346332278,1734897047083,-952.05,0.00013972,2]
[346332279,1734897047093,-500.0,0.00013972,2]
[346332280,1734897047102,-500.0,0.00013972,2]
[346332281,1734897047112,-698.05,0.00013972,2]
[346332282,1734897047122,-500.0,0.00013972,2]
[346332283,1734897047134,-500.0,0.00013972,2]
[346332284,1734897047143,-1164.54,0.00013972,2]
[346332285,1734897047153,-671.9,0.00013972,2]
[346332286,1734897047162,-500.0,0.00013972,2]
[346332287,1734897047171,-500.0,0.00013972,2]
[346332288,1734897047180,-1005.08,0.00013972,2]
[346332289,1734897047190,-500.0,0.00013972,2]
[346332290,1734897047199,-500.0,0.00013972,2]
[346332291,1734897047208,-500.0,0.00013972,2]
[346332292,1734897047219,-510.18,0.00013972,2]
[346332293,1734897047229,-1040.67,0.00013972,2]
[346332294,1734897047238,-1056.68,0.00013972,2]
[346332295,1734897047247,-500.0,0.00013972,2]
[346332296,1734897047256,-500.0,0.00013972,2]
[346332297,1734897047266,-500.0,0.00013972,2]
[346332298,1734897047277,-1353.34,0.00013972,2]
[346332299,1734897047286,-582.06,0.00013972,2]
[346332300,1734897047296,-500.0,0.00013972,2]
[346332301,1734897047305,-500.0,0.00013972,2]
[346332302,1734897047315,-2139.06,0.00013972,2]
[346332303,1734897047324,-500.0,0.00013972,2]
[346332304,1734897047333,-500.0,0.00013972,2]
[346332305,1734897047343,-562.42089654,0.00013972,2]
[346332306,1734897047352,-500.0,0.00013972,2]
[346332307,1734897047361,-500.0,0.00013972,2]
[346332308,1734897047371,-500.0,0.00013972,2]
[346332309,1734897047391,-500.0,0.00013972,2]
[346332310,1734897047401,-643.72,0.00013972,2]
[346332311,1734897047410,-500.0,0.00013972,2]
[346332312,1734897047421,-1482.87,0.00013972,2]
[346332313,1734897047431,-500.0,0.00013972,2]
[346332314,1734897047441,-1337.27,0.00013972,2]
[346332315,1734897047451,-500.0,0.00013972,2]
[346332316,1734897047460,-1929.5,0.00013972,2]
[346332317,1734897047470,-1033.81,0.00013972,2]
[346332318,1734897047480,-1820.01,0.00013972,2]
[346332319,1734897047490,-652.24,0.00013972,2]
[346332320,1734897047500,-666.78,0.00013972,2]
[346332321,1734897047509,-560.43,0.00013972,2]
[346332322,1734897047519,-513.57,0.00013972,2]
[346332323,1734897047529,-500.0,0.00013972,2]
[346332324,1734897047541,-500.0,0.00013972,2]
[346332325,1734897047552,-500.0,0.00013972,2]
[346332326,1734897047561,-500.0,0.00013972,2]
[346332327,1734897047571,-500.0,0.00013972,2]
[346332328,1734897047581,-500.0,0.00013972,2]
[346332329,1734897047590,-500.0,0.00013972,2]
[346332330,1734897047600,-500.0,0.00013972,2]
[346332331,1734897047610,-500.0,0.00013972,2]
[346332332,1734897047620,-1119.54,0.00013972,2]
[346332333,1734897047632,-849.73,0.00013972,2]
[346332334,1734897047642,-500.0,0.00013972,2]
[346332335,1734897047652,-500.0,0.00013972,2]
[346332336,1734897047823,-1014.61,0.00013972,2]
[346332337,1734897047833,-855.41,0.00013972,2]
[346332338,1734897047843,-500.0,0.00013972,2]
[346332339,1734897047852,-1293.98,0.00013972,2]
[346332340,1734897047861,-1715.33,0.00013972,2]
[346332341,1734897047870,-719.07,0.00013972,2]
[346332342,1734897047881,-1160.55,0.00013972,2]
[346332343,1734897047891,-1373.43,0.00013972,2]
[346332344,1734897047900,-622.00717422,0.00013972,2]
[346332345,1734897047911,-2693.72,0.00013972,2]
[346332346,1734897047920,-1523.21,0.00013972,2]
[346332347,1734897047931,-619.95,0.00013972,2]
[346332348,1734897047942,-500.0,0.00013972,2]
[346332349,1734897047951,-500.0,0.00013972,2]
[346332350,1734897047962,-500.0,0.00013972,2]
[346332351,1734897047971,-592.29,0.00013972,2]
[346332352,1734897047982,-529.95,0.00013972,2]
[346332353,1734897047991,-500.0,0.00013972,2]
[346332354,1734897048002,-868.5,0.00013972,2]
[346332355,1734897048012,-500.0,0.00013972,2]
[346332356,1734897048022,-500.0,0.00013972,2]
[346332357,1734897048031,-500.0,0.00013972,2]
[346332358,1734897048042,-500.0,0.00013972,2]
[346332359,1734897048052,-500.0,0.00013972,2]
[346332360,1734897048062,-500.0,0.00013972,2]
[346332361,1734897048072,-566.21,0.00013972,2]
[346332362,1734897048082,-500.0,0.00013972,2]
[346332363,1734897048092,-1947.43,0.00013972,2]
[346332364,1734897048101,-676.61,0.00013972,2]
[346332365,1734897048112,-500.0,0.00013972,2]
[346332366,1734897048122,-500.0,0.00013972,2]
[346332367,1734897048134,-500.0,0.00013972,2]
[346332368,1734897048144,-535.01,0.00013972,2]
[346332369,1734897048154,-3977.37,0.00013972,2]
[346332370,1734897048164,-500.0,0.00013972,2]
[346332371,1734897048174,-634.08,0.00013972,2]
[346332372,1734897048183,-500.0,0.00013972,2]
[346332373,1734897048192,-500.0,0.00013972,2]
[346332374,1734897048202,-962.67,0.00013972,2]
[346332375,1734897048211,-27404.14,0.00013972,2]
[346332376,1734897048220,-14038.32,0.00013972,2]
[346332377,1734897048230,-500.0,0.00013972,2]
[346332378,1734897048240,-500.0,0.00013972,2]
[346332379,1734897048249,-849.61,0.00013972,2]
[346332380,1734897048259,-500.0,0.00013972,2]
[346332381,1734897048268,-500.0,0.00013972,2]
[346332382,1734897048278,-1300.84,0.00013972,2]
[346332383,1734897048288,-64100.02,0.00013972,2]
[346332384,1734897048297,-500.0,0.00013972,2]
[346332385,1734897048307,-500.0,0.00013972,2]
[346332386,1734897048316,-797.82,0.00013972,2]
[346332387,1734897048325,-504.13,0.00013972,2]
[346332388,1734897048335,-500.0,0.00013972,2]
[346332389,1734897048345,-20094.63,0.00013972,2]
[346332390,1734897048355,-500.0,0.00013972,2]
[346332391,1734897048364,-10283.77,0.00013972,2]
[346332392,1734897048374,-500.0,0.00013972,2]
[346332393,1734897048386,-500.0,0.00013972,2]
[346332394,1734897048396,-3344.18,0.00013972,2]
[346332395,1734897048406,-500.0,0.00013972,2]
[346332396,1734897048416,-500.0,0.00013972,2]
[346332397,1734897048425,-500.0,0.00013972,2]
[346332398,1734897048435,-4531.62,0.00013972,2]
[346332399,1734897048444,-500.0,0.00013972,2]
[346332400,1734897048454,-500.0,0.00013972,2]
[346332401,1734897048464,-1049.55,0.00013972,2]
[346332402,1734897048474,-3183.55,0.00013972,2]
[346332403,1734897048483,-778.24,0.00013972,2]
[346332404,1734897048494,-2940.0,0.00013972,2]
[346332405,1734897048503,-500.0,0.00013972,2]
[346332406,1734897048513,-296.51156252,0.00013972,2]
[346332407,1734897048522,-2884.86,0.00013972,2]
[346332408,1734897048532,-528.1,0.00013972,2]
[346332409,1734897048542,-592.88,0.00013972,2]
[346332410,1734897048551,-500.0,0.00013972,2]
[346332411,1734897048560,-584.75,0.00013972,2]
[346332412,1734897048570,-500.0,0.00013972,2]
[346332413,1734897048579,-1073.82,0.00013972,2]
[346332414,1734897048588,-500.0,0.00013972,2]
[346332415,1734897048598,-1405.53,0.00013972,2]
[346332416,1734897048607,-500.0,0.00013972,2]
[346332417,1734897048616,-1023.92,0.00013972,2]
[346332418,1734897048625,-500.0,0.00013972,2]
[346332419,1734897048638,-7302.38,0.00013972,2]
[346332420,1734897048647,-500.0,0.00013972,2]
[346332421,1734897048656,-674.06,0.00013972,2]
[346332422,1734897048665,-640.17,0.00013972,2]
[346332423,1734897048675,-828.12,0.00013972,2]
[346332424,1734897048684,-500.0,0.00013972,2]
[346332425,1734897048694,-1365.27,0.00013972,2]
[346332426,1734897048704,-6054.54,0.00013972,2]
[346332427,1734897048714,-1216.17,0.00013972,2]
[346332428,1734897048723,-520.62,0.00013972,2]
[346332429,1734897048733,-500.0,0.00013972,2]
[346332430,1734897048743,-500.0,0.00013972,2]
[346332431,1734897048752,-1530.79,0.00013972,2]
[346332432,1734897048762,-2007.62,0.00013972,2]
[346332433,1734897048771,-500.0,0.00013972,2]
[346332434,1734897048781,-750.44,0.00013972,2]
[346332435,1734897048790,-795.37,0.00013972,2]
[346332436,1734897048799,-2741.05,0.00013972,2]
[346332437,1734897048809,-5145.72,0.00013972,2]
[346332438,1734897048818,-500.0,0.00013972,2]
[346332439,1734897048827,-1629.7,0.00013972,2]
[346332440,1734897048836,-500.0,0.00013972,2]
[346332441,1734897048846,-500.0,0.00013972,2]
[346332442,1734897048855,-500.0,0.00013972,2]
[346332443,1734897048864,-1511.76,0.00013972,2]
[346332444,1734897048874,-4471.67,0.00013972,2]
[346332445,1734897048885,-500.0,0.00013972,2]
[346332446,1734897048895,-500.0,0.00013972,2]
[346332447,1734897048906,-2887.71,0.00013972,2]
[346332448,1734897048916,-500.0,0.00013972,2]
[346332449,1734897048927,-500.0,0.00013972,2]
[346332450,1734897048937,-2759.16,0.00013972,2]
[346332451,1734897048947,-400.0,0.00013973,2]
[346332452,1734897048957,-1000.0,0.00014,14]
[346332453,1734897048967,-151.0,0.00014,2]
[346332454,1734897048977,-618.0,0.00014,2]
[346332455,1734897048987,-2473.0544,0.00014,2]
[346332456,1734897048996,-2977.4898,0.00014042,2]
[346332457,1734897049006,-151.0,0.000141,2]
[346332458,1734897049016,-151.0,0.000141,2]
[346332459,1734897049025,-1763.75725335,0.00014146,2]
[346332460,1734897049035,-5000.0,0.000142,2]